bitfinex-derivatives/quotes_SOLF0:USTF0_20251209
["timestamp","ask_amount","ask_price","bid_price","bid_amount"]
[1765296539893,0.04898458,139.99,139.91,7.2121684]
[1765296540089,100.0242,139.97,139.88,7.2121684]
[1765296540288,100.0166,139.98,139.88,7.2121684]
[1765296540706,99.9887,140.02,139.91,7.2121684]
[1765296540895,99.9832,140.03,139.91,7.2121684]
[1765296540896,160.3832,140.03,139.91,7.2121684]
[1765296541095,0.04662481,139.98,139.95,0.05374608]
[1765296541302,100.06632481,139.98,139.85,100.1062]
[1765296541599,60.4,139.99,139.88,7.2121684]
[1765296541800,100.0163,139.98,139.88,7.2121684]
[1765296541996,100.0322,139.96,139.88,7.2121684]
[1765296542197,6.4317,139.94,139.85,7.2121684]
[1765296542401,0.04575449,139.91,139.88,0.05077529]
[1765296542599,0.04575449,139.91,139.78,7.2121684]
[1765296542600,100.0742,139.9,139.78,7.2121684]
[1765296542794,60.4,139.9,139.78,7.2121684]
[1765296542991,100.0241,139.97,139.84,7.2121684]
[1765296543190,60.4,139.95,139.83,100.1215]
[1765296543499,66.8313,139.95,139.85,6.4353]
[1765296543699,66.8313,139.95,139.89,0.05359924]
[1765296543700,0.05451382,139.91,139.89,0.05359924]
[1765296545599,1.47451382,139.91,139.89,0.05359924]
[1765296545800,1.47451382,139.91,139.81,6.4372]
[1765296546006,100.0489,139.94,139.81,6.4372]
[1765296546204,107.2540684,139.95,139.8,100.1419]
[1765296546509,6.4322,139.93,139.82,6.4366]
[1765296546700,0.05367833,139.89,139.86,0.05428354]
[1765296546898,0.04899436,139.89,139.86,0.05424956]
[1765296547291,0.04899436,139.89,139.73,173.734]
[1765296547292,100.1172,139.84,139.7,100.2153]
[1765296547496,100.1172,139.84,139.69,100.2195]
[1765296547497,100.1666,139.77,139.63,100.266]
[1765296547690,60.42,139.76,139.66,100.2442]
[1765296547904,60.42,139.75,139.63,100.266]
[1765296548107,60.42,139.75,139.64,100.2574]
[1765296548302,0.05368893,139.71,139.68,0.05114009]
[1765296548908,0.05368893,139.71,139.68,100.27754009]
[1765296549305,13.6497684,139.81,139.69,100.2233]
[1765296549507,60.42,139.8,139.69,100.2233]
[1765296550204,60.42,139.79,139.68,6.443]
[1765296550412,0.04931416,139.75,139.72,0.05332895]
[1765296553512,0.04931416,139.75,139.61,7.2121684]
[1765296553513,101.67371416,139.75,139.61,7.2121684]
[1765296553808,6.4416,139.72,139.59,100.2952]
[1765296554209,6.4416,139.72,139.58,107.5125684]
[1765296554210,100.2207,139.7,139.54,100.3301]
[1765296554408,60.44,139.69,139.56,100.3166]
[1765296554607,0.05203988,139.63,139.61,0.05046501]
[1765296554806,100.2382,139.68,139.61,0.05046501]
[1765296555009,0.04714699,139.66,139.5,100.3583]
[1765296555313,100.2682,139.63,139.49,100.3648]
[1765296555508,60.46,139.64,139.53,100.3374]
[1765296555708,100.2467,139.66,139.52,7.2121684]
[1765296556010,0.0519254,139.6,139.58,0.04892487]
[1765296556210,0.05354411,139.6,139.58,0.04892487]
[1765296556611,0.05354411,139.6,139.58,100.35142487]
[1765296556911,60.46,139.69,139.58,101.79142487]
[1765296557100,60.46,139.69,139.58,100.3025]
[1765296557305,60.46,139.69,139.6,6.4471]
[1765296557712,0.05277146,139.66,139.63,0.05126144]
[1765296558710,0.05277146,139.66,139.5,200.7123]
[1765296558908,100.2493,139.66,139.51,100.3508]
[1765296559104,100.2535,139.65,139.53,6.4502]
[1765296559518,100.2535,139.65,139.51,100.3508]
[1765296559710,0.04776112,139.59,139.57,0.04882195]
[1765296559911,0.04813359,139.59,139.52,62.0]
[1765296560105,100.2643,139.64,139.5,100.3588]
[1765296560414,60.48,139.63,139.51,6.4508]
[1765296560817,6.4462,139.62,139.49,106.8155]
[1765296561120,0.0462086,139.57,139.54,0.05274225]
[1765296561506,0.0462086,139.57,139.44,100.4017]
[1765296561710,100.3186,139.56,139.4,173.0663977]
[1765296561916,6.4513,139.51,139.38,6.4572]
[1765296562220,100.3682,139.49,139.34,100.4736]
[1765296562414,100.3769,139.48,139.33,100.4826]
[1765296562615,0.04962582,139.42,139.39,0.04996326]
[1765296562817,0.04519573,139.42,139.39,0.04840847]
[1765296563720,92.3099,139.54,139.41,6.4558]
[1765296564016,60.52,139.5,139.37,100.4535]
[1765296564217,60.52,139.5,139.38,100.4458]
[1765296564619,0.05296104,139.45,139.43,0.05278522]
[1765296564818,0.045288,139.45,139.43,0.05278522]
[1765296567520,0.045288,139.45,139.35,6.4583]
[1765296567826,60.54,139.48,139.38,100.4465]
[1765296568028,60.54,139.5,139.38,100.4465]
[1765296568417,0.05141108,139.45,139.43,0.04969953]
[1765296568621,0.0496858,139.45,139.43,0.05275313]
[1765296570919,85.86,139.54,139.43,1.49275313]
[1765296571123,85.86,139.54,139.42,100.4141]
[1765296571327,85.86,139.54,139.44,6.4545]
[1765296571524,85.86,139.54,139.4,100.4274]
[1765296571726,186.1963,139.54,139.39,100.4339]
[1765296571919,0.05260023,139.48,139.45,0.05082459]
[1765296572116,0.05159818,139.48,139.45,0.05304026]
[1765296572321,60.58,139.47,139.45,0.05304026]
[1765296572832,0.05159818,139.48,139.45,0.05304026]
[1765296574519,1.49159818,139.48,139.45,0.05304026]
[1765296574725,60.58,139.47,139.45,0.05304026]
[1765296574926,0.05159818,139.48,139.45,0.05304026]
[1765296575833,1.49159818,139.48,139.45,0.05304026]
[1765296576624,0.05159818,139.48,139.45,0.05304026]
[1765296576928,1.49159818,139.48,139.45,0.05304026]
[1765296577437,0.05159818,139.48,139.45,0.05304026]
[1765296577735,60.6,139.47,139.45,0.05304026]
[1765296578234,1.44,139.46,139.36,100.4592]
[1765296578432,60.6,139.47,139.36,100.4592]
[1765296578619,60.6,139.47,139.36,6.4579]
[1765296578824,60.6,139.47,139.35,100.4671]
[1765296579025,0.04794611,139.42,139.4,0.04689386]
[1765296579237,60.6,139.47,139.4,0.04689386]
[1765296579440,0.04866176,139.45,139.4,0.04689386]
[1765296579737,6.50306176,139.45,139.33,100.4828]
[1765296580034,6.4544,139.45,139.3,100.5038]
[1765296580228,160.9924,139.46,139.27,100.526]
[1765296580429,100.3474,139.52,139.32,100.4894]
[1765296580629,0.04836788,139.42,139.4,0.04640061]
[1765296580838,0.04926297,139.42,139.4,0.04772188]
[1765296582034,60.6,139.51,139.4,0.04772188]
[1765296582235,60.6,139.51,139.37,100.451]
[1765296582538,60.6,139.51,139.4,6.456]
[1765296582737,60.6,139.51,139.37,100.451]
[1765296582935,0.05406278,139.45,139.43,0.05263857]
[1765296583142,0.05267014,139.45,139.43,0.05263857]
[1765296585139,0.05267014,139.45,139.32,100.4853]
[1765296585339,100.3821,139.47,139.28,113.4418]
[1765296585736,160.979,139.48,139.32,100.4892]
[1765296585940,0.048972,139.41,139.39,0.04821408]
[1765296586141,0.05178075,139.41,139.39,0.05116345]
[1765296586728,100.3183,139.56,139.39,0.05116345]
[1765296586729,100.325,139.55,139.39,1.49116345]
[1765296586940,100.325,139.55,139.39,100.4364]
[1765296587240,100.3485,139.52,139.37,100.4533]
[1765296587441,60.62,139.51,139.36,100.4592]
[1765296587745,0.05379983,139.45,139.42,0.04930158]
[1765296587925,0.05152648,139.45,139.42,0.05133145]
[1765296588241,60.62,139.54,139.43,62.0]
[1765296588636,67.0702,139.54,139.44,6.4543]
[1765296589340,0.05227896,139.5,139.48,0.0512334]
[1765296591852,60.6,139.57,139.48,1.4912334]
[1765296592045,86.0,139.6,139.49,100.3672]
[1765296592344,146.6,139.6,139.46,112.31183448]
[1765296592639,146.6,139.6,139.46,100.3851]
[1765296592942,146.6,139.6,139.52,0.04786245]
[1765296592943,0.04610681,139.54,139.52,0.04786245]
[1765296593137,0.04698246,139.54,139.52,0.04786245]
[1765296595436,100.2603,139.64,139.52,0.04786245]
[1765296595635,6.4464,139.62,139.53,6.45]
[1765296596147,60.6,139.63,139.52,6.4505]
[1765296596336,100.2817,139.61,139.48,100.3718]
[1765296596536,0.04736533,139.57,139.55,0.05330434]
[1765296596750,0.0494937,139.57,139.55,0.05330434]
[1765296600136,0.0494937,139.57,139.44,100.4027]
[1765296600137,1.4894937,139.57,139.44,100.4027]
[1765296600337,100.2987,139.59,139.45,100.3959]
[1765296600750,6.4505,139.53,139.42,100.4171]
[1765296600936,60.58,139.54,139.41,100.4188]
[1765296601146,0.05401799,139.49,139.46,0.05218165]
[1765296601342,0.05401799,139.49,139.47,6.4528]
[1765296601543,0.05401799,139.49,139.46,0.05218165]
[1765296601748,60.58,139.57,139.48,100.373]
[1765296601948,6.4474,139.6,139.48,100.373]
[1765296602148,67.0274,139.6,139.49,62.0]
[1765296602350,67.0274,139.6,139.52,6.4506]
[1765296602852,0.05366139,139.57,139.55,0.04808142]
[1765296604152,6.4449,139.65,139.55,6.49728142]
[1765296604355,100.2409,139.67,139.54,100.3257]
[1765296604356,60.58,139.67,139.54,100.3257]
[1765296604650,6.4441,139.67,139.57,6.4483]
[1765296605055,60.58,139.68,139.57,100.3095]
[1765296605245,0.05476413,139.64,139.61,100.3279698]
[1765296605441,100.1838,139.75,139.61,100.2798]
[1765296605642,67.0207,139.74,139.65,6.4447]
[1765296605859,60.58,139.74,139.65,6.4447]
[1765296606456,0.045747,139.71,139.68,0.0522371]
[1765296608056,6.4425,139.7,139.68,0.0522371]
[1765296608252,100.258747,139.71,139.6,6.4468]
[1765296608459,100.213,139.71,139.6,6.4468]
[1765296608659,6.4438,139.68,139.57,6.4482]
[1765296608865,6.4438,139.68,139.55,60.82]
[1765296609162,6.4438,139.68,139.57,100.3097]
[1765296609365,0.04780613,139.64,139.61,0.05325623]
[1765296611166,0.04780613,139.64,139.62,68.4458]
[1765296611551,0.04780613,139.64,139.62,62.0]
[1765296611752,0.04780613,139.64,139.61,0.05325623]
[1765296613262,0.04780613,139.64,139.61,6.49965623]
[1765296613458,0.00246227,139.64,139.61,101.77165623]
[1765296613858,0.00246227,139.64,139.62,6.4458]
[1765296614461,0.00246227,139.64,139.63,1.44]
[1765296614654,0.00246227,139.64,139.63,63.44]
[1765296614966,60.54,139.75,139.67,6.4436]
[1765296615861,60.54,139.75,139.7,0.04671227]
[1765296616066,0.04567567,139.72,139.7,0.04671227]
[1765296616565,100.1626,139.78,139.7,0.04671227]
[1765296616566,100.1288,139.83,139.7,101.69791227]
[1765296616767,160.6488,139.83,139.7,100.2112]
[1765296617067,66.9567,139.83,139.72,100.1989]
[1765296617367,7.2141515,139.87,139.74,100.1845]
[1765296617556,0.04835346,139.82,139.79,0.05127881]
[1765296624964,185.9611,139.92,139.79,0.05127881]
[1765296624965,3.20014719,140.06,139.92,100.0583]
[1765296625263,3.20014719,140.06,139.97,100.0219]
[1765296625470,3.20014719,140.06,139.98,100.0132]
[1765296625668,3.20014719,140.06,139.96,100.0304]
[1765296625862,3.20014719,140.06,140.0,100.0018]
[1765296626064,0.05278515,140.04,140.02,0.04753369]
[1765296626671,3.20014719,140.06,140.03,99.9805]
[1765296626973,85.84,140.31,140.02,100.03043369]
[1765296626974,60.46,140.16,140.02,100.03043369]
[1765296627174,60.46,140.16,140.04,99.9725]
[1765296627674,0.05335207,140.11,140.09,0.04651943]
[1765296627874,99.9201,140.12,139.99,100.0077]
[1765296628065,99.9201,140.12,139.97,160.7414]
[1765296628066,99.9242,140.11,139.97,100.0214]
[1765296628264,99.9335,140.1,139.96,100.0291]
[1765296628672,6.4245,140.1,139.97,168.4524]
[1765296628877,0.05281705,140.05,140.02,0.05296433]
[1765296629269,1.47281705,140.05,139.95,6.4309]
[1765296629469,60.42,140.05,139.96,100.0298]
[1765296629880,60.42,140.05,139.96,6.4301]
[1765296630074,60.42,140.05,139.97,100.0221]
[1765296630381,0.05248473,140.02,140.0,0.04587363]
[1765296634381,6.424,140.11,140.0,0.04587363]
[1765296634382,60.4,140.09,140.0,0.04587363]
[1765296634580,99.9452,140.08,139.95,100.0362]
[1765296634775,106.3791,140.07,139.95,6.4309]
[1765296635284,106.4251,140.01,139.89,6.4337]
[1765296635480,106.4251,140.01,139.83,100.1188]
[1765296635481,100.0167,139.98,139.84,100.1124]
[1765296635779,118.7089251,139.99,139.87,6.4343]
[1765296635972,60.38,139.97,139.87,6.4343]
[1765296636170,60.38,139.99,139.88,100.087]
[1765296636473,0.04731256,139.95,139.92,0.04854195]
[1765296637584,0.04731256,139.95,139.92,6.48054195]
[1765296638672,60.38,140.01,139.92,6.48054195]
[1765296638968,60.38,140.0,139.85,122.01069166]
[1765296639172,160.3825,140.0,139.85,122.01069166]
[1765296639584,6.4294,139.99,139.88,6.4341]
[1765296639781,0.05036551,139.95,139.92,0.05481013]
[1765296642680,124.0,140.36,139.92,0.05481013]
[1765296642887,124.0,140.36,139.96,100.0305]
[1765296642888,99.9343,140.1,139.96,100.0305]
[1765296643092,118.6097251,140.13,140.0,100.0017]
[1765296643390,6.4238,140.11,140.01,6.4278]
[1765296643885,0.04554087,140.07,140.05,0.0545318]
[1765296646482,99.8994,140.15,140.05,0.0545318]
[1765296646483,99.8952,140.15,140.05,0.0545318]
[1765296646686,60.38,140.14,140.01,99.994]
[1765296646890,160.2867,140.14,140.0,99.9964]
[1765296647082,160.2867,140.14,140.0,99.9995]
[1765296647385,60.38,140.13,140.0,99.9995]
[1765296647587,0.03100995,140.08,140.05,0.05492125]
[1765296649080,0.03100995,140.08,140.05,6.48092125]
[1765296650275,0.03100995,140.08,140.06,6.4256]
[1765296650988,7.18787693,140.19,140.09,6.4244]
[1765296651190,60.36,140.18,140.05,99.9603]
[1765296651498,167.42467693,140.18,140.04,99.9694]
[1765296651790,6.4221,140.15,140.05,6.4261]
[1765296651990,6.4221,140.15,140.09,0.05128174]
[1765296652986,60.36,140.15,140.09,0.05128174]
[1765296653387,160.2615,140.15,140.09,0.05128174]
[1765296653586,99.9113,140.13,140.09,0.05128174]
[1765296654292,6.4248,140.09,140.0,6.4286]
[1765296654484,107.09267693,140.14,140.0,100.0016]
[1765296654687,6.4233,140.12,140.03,6.4271]
[1765296654886,99.8753,140.18,140.03,6.4271]
[1765296654887,60.34,140.11,140.03,99.9756]
[1765296655078,60.34,140.11,140.06,0.04899715]
[1765296655079,0.04746235,140.08,140.06,0.04899715]
[1765296656994,0.04746235,140.08,140.06,6.47469715]
[1765296659493,0.04746235,140.08,140.06,0.04899715]
[1765296661196,499.2102,140.23,140.12,6.423]
[1765296661197,7.18787693,140.22,140.12,6.423]
[1765296661498,60.34,140.21,140.12,6.423]
[1765296661897,99.861,140.2,140.1,6.4238]
[1765296662089,99.861,140.2,140.06,99.9575]
[1765296662288,99.8749,140.18,140.12,0.05229091]
[1765296662499,7.18787693,140.16,140.02,99.9851]
[1765296663002,60.32,140.15,140.06,99.9573]
[1765296663201,60.32,140.15,140.03,99.979]
[1765296663502,0.04852363,140.1,140.08,0.04526883]
[1765296663696,0.04786299,140.1,140.08,0.04526883]
[1765296663998,7.18787693,140.21,140.09,99.9365]
[1765296664198,60.32,140.2,140.11,99.9221]
[1765296664393,99.8098,140.27,140.14,99.8992]
[1765296664595,60.32,140.26,140.13,99.9037]
[1765296664789,7.18787693,140.25,140.12,99.9155]
[1765296664991,7.18787693,140.25,140.17,0.04879179]
[1765296665191,13.60527693,140.25,140.17,0.04879179]
[1765296665393,60.32,140.24,140.17,0.04879179]
[1765296665793,60.32,140.24,140.17,6.46949179]
[1765296665989,85.7,140.28,140.17,0.04879179]
[1765296666202,85.7,140.28,140.21,0.04611005]
[1765296666405,60.32,140.27,140.21,0.04611005]
[1765296666800,85.7,140.28,140.21,6.46501005]
[1765296667002,60.32,140.27,140.21,0.04611005]
[1765296667403,6.4174,140.25,140.21,0.04611005]
[1765296667703,67.50787693,140.27,140.21,0.04611005]
[1765296667898,167.32077693,140.27,140.21,0.04611005]
[1765296668106,99.8198,140.26,140.21,0.04611005]
[1765296668291,7.18787693,140.27,140.21,0.04611005]
[1765296668495,60.32,140.26,140.21,0.04611005]
[1765296668695,6.4174,140.25,140.21,0.04611005]
[1765296669193,60.32,140.24,140.21,0.04611005]
[1765296670005,92.1161,140.28,140.21,0.04611005]
[1765296670304,60.3,140.27,140.21,0.04611005]
[1765296670701,85.7,140.28,140.21,0.04611005]
[1765296671404,167.29757693,140.27,140.21,0.04611005]
[1765296671806,85.7,140.28,140.21,0.04611005]
[1765296672010,60.3,140.27,140.21,0.04611005]
[1765296673110,92.116,140.28,140.21,0.04611005]
[1765296673309,160.1127,140.27,140.21,0.04611005]
[1765296673499,60.3,140.27,140.21,0.04611005]
[1765296673908,85.7,140.28,140.21,0.04611005]
[1765296674102,60.3,140.27,140.21,0.04611005]
[1765296674308,66.7166,140.27,140.21,0.04611005]
[1765296675008,60.3,140.26,140.21,0.04611005]
[1765296675513,167.30837693,140.26,140.21,0.04611005]
[1765296676203,107.02957693,140.23,140.09,99.9354]
[1765296676707,6.4189,140.22,140.13,6.4225]
[1765296677296,0.05359338,140.19,140.16,0.04826607]
[1765296677495,60.28,140.18,140.09,99.9354]
[1765296677705,60.28,140.18,140.08,99.9425]
[1765296677905,60.28,140.18,140.06,99.9583]
[1765296678615,0.05433232,140.13,140.11,0.05464626]
[1765296678797,0.04697973,140.13,140.11,0.05464626]
[1765296679709,60.28,140.23,140.11,0.05464626]
[1765296680008,6.4196,140.2,140.09,99.9369]
[1765296680409,99.8527,140.21,140.09,62.0]
[1765296680710,0.050612,140.16,140.14,0.0463137]
[1765296680913,99.8124,140.27,140.14,0.0463137]
[1765296681107,99.7886,140.3,140.15,99.8943]
[1765296681411,60.3,140.29,140.19,6.4195]
[1765296681611,111.59114806,140.33,140.19,99.8655]
[1765296681813,99.7533,140.35,140.25,0.05414759]
[1765296682004,99.7709,140.33,140.29,0.04978697]
[1765296682315,99.7709,140.33,140.19,6.4197]
[1765296682316,106.189,140.32,140.19,6.4197]
[1765296682504,6.4141,140.32,140.2,6.4191]
[1765296683315,0.05106421,140.27,140.25,0.049161]
[1765296683509,0.05106421,140.27,140.25,0.04972236]
[1765296683510,0.04849125,140.27,140.25,0.04972236]
[1765296687504,0.04849125,140.27,140.17,62.0]
[1765296687709,6.4158,140.28,140.15,99.8913]
[1765296687910,99.8118,140.27,140.1,99.9281]
[1765296688112,6.4171,140.26,140.15,6.4216]
[1765296688624,6.416,140.28,140.16,6.421]
[1765296688829,0.05239822,140.22,140.19,0.05380029]
[1765296689008,0.05295352,140.22,140.19,0.05213021]
[1765296692416,0.05295352,140.22,140.09,99.9335]
[1765296692617,99.8342,140.24,140.09,99.9335]
[1765296692813,99.8342,140.24,140.1,99.9289]
[1765296693010,99.8342,140.24,140.09,99.9335]
[1765296693011,66.6983,140.23,140.12,99.9147]
[1765296693321,11.82384806,140.27,140.13,99.9036]
[1765296693322,60.28,140.22,140.13,99.9036]
[1765296693520,0.05224354,140.19,140.16,0.05444558]
[1765296693923,0.05224354,140.19,140.17,6.4207]
[1765296694320,0.05224354,140.19,140.16,0.05444558]
[1765296694518,60.28,140.25,140.17,6.4206]
[1765296695021,60.28,140.25,140.18,6.4202]
[1765296695416,0.04695185,140.23,140.2,0.05309572]
[1765296695613,0.05130921,140.23,140.2,0.04682496]
[1765296698316,60.28,140.22,140.2,0.04682496]
[1765296698520,0.05130921,140.23,140.2,0.04682496]
[1765296699818,99.767,140.33,140.2,1.46682496]
[1765296700024,60.28,140.31,140.22,6.4184]
[1765296700222,66.6946,140.31,140.2,99.8568]
[1765296700426,60.28,140.31,140.21,99.8479]
[1765296700632,60.28,140.31,140.24,6.4174]
[1765296700829,0.04936403,140.29,140.26,0.04606774]
[1765296701720,0.04936403,140.29,140.26,21.8219769]
[1765296701919,99.7245,140.39,140.26,21.8219769]
[1765296702126,60.28,140.38,140.24,99.8276]
[1765296702326,99.7456,140.36,140.23,99.8318]
[1765296702517,160.0153,140.38,140.24,99.8303]
[1765296702718,60.28,140.38,140.28,99.8019]
[1765296702914,60.28,140.38,140.32,0.04734962]
[1765296703120,145.86,140.4,140.32,0.04734962]
[1765296703521,85.58,140.4,140.32,6.46124962]
[1765296703829,60.28,140.41,140.33,99.7637]
[1765296704025,60.28,140.41,140.36,0.0547601]
[1765296704921,60.28,140.41,140.27,99.8091]
[1765296705122,60.28,140.41,140.28,99.8017]
[1765296705336,60.26,140.4,140.3,99.7846]
[1765296705728,60.26,140.4,140.28,99.8017]
[1765296706029,60.26,140.4,140.33,0.04602552]
[1765296706030,0.0459194,140.35,140.33,0.04602552]
[1765296706237,0.05358675,140.35,140.21,99.8489]
[1765296706427,99.7558,140.35,140.21,106.2677]
[1765296706627,99.7558,140.35,140.21,106.2698]
[1765296706829,60.26,140.34,140.21,106.2698]
[1765296707129,0.05208083,140.29,140.26,0.05235031]
[1765296707336,60.26,140.33,140.26,0.04574595]
[1765296707535,60.26,140.33,140.28,0.05023681]
[1765296707727,0.05116468,140.31,140.28,0.05023681]
[1765296712528,0.05116468,140.31,140.28,6.46563681]
[1765296712839,0.05116468,140.31,140.28,0.05023681]
[1765296713239,0.05116468,140.31,140.2,99.8592]
[1765296713443,99.7644,140.34,140.2,99.8592]
[1765296713731,99.7644,140.34,140.17,99.8743]
[1765296713732,111.59934806,140.32,140.17,99.8743]
[1765296713927,11.82384806,140.35,140.21,99.8512]
[1765296714133,111.57984806,140.35,140.21,99.8512]
[1765296714331,0.05132088,140.29,140.27,0.05034491]
[1765296714535,0.04631132,140.29,140.27,0.05034491]
[1765296716040,0.04631132,140.29,140.21,6.419]
[1765296716235,60.24,140.28,140.21,6.419]
[1765296717038,0.05139491,140.26,140.23,0.04499325]
[1765296718439,0.05139491,140.26,140.24,99.8304]
[1765296718642,60.24,140.33,140.25,6.4169]
[1765296718948,60.24,140.33,140.19,161.8625]
[1765296719142,6.4147,140.31,140.21,6.4189]
[1765296719648,0.04513214,140.27,140.25,0.04589409]
[1765296720045,1.46513214,140.27,140.13,99.908]
[1765296720244,111.61564806,140.3,140.13,99.908]
[1765296720638,6.4161,140.28,140.18,6.4201]
[1765296720841,99.8003,140.29,140.15,99.8939]
[1765296721146,0.05312106,140.24,140.22,0.0543302]
[1765296721345,0.05312106,140.24,140.15,99.8949]
[1765296721346,0.05320063,140.24,140.15,99.8949]
[1765296721546,0.05320063,140.24,140.14,99.8976]
[1765296721547,60.24,140.34,140.22,99.845]
[1765296721742,60.24,140.34,140.2,99.8553]
[1765296721947,160.0026,140.34,140.2,99.8553]
[1765296722246,60.24,140.34,140.21,62.0]
[1765296722447,0.04987056,140.29,140.26,0.04635198]
[1765296723345,0.04987056,140.29,140.16,99.8837]
[1765296723644,99.7821,140.31,140.17,99.8806]
[1765296724047,6.4151,140.3,140.19,6.4197]
[1765296724253,0.05217532,140.26,140.23,0.04955246]
[1765296724945,106.31601826,140.41,140.27,99.8063]
[1765296725148,60.26,140.4,140.3,99.7869]
[1765296725341,60.26,140.4,140.3,99.7879]
[1765296725541,88.6737147,140.43,140.3,99.7881]
[1765296725741,88.6737147,140.43,140.33,99.7634]
[1765296726049,88.6737147,140.43,140.3,62.0]
[1765296726050,0.05404521,140.39,140.37,0.0485029]
[1765296726348,0.05404521,140.39,140.27,99.807]
[1765296726552,99.7263,140.39,140.27,6.4162]
[1765296726846,99.7326,140.38,140.24,99.83]
[1765296727040,6.412,140.37,140.25,6.4171]
[1765296727236,0.05235869,140.32,140.3,0.04752617]
[1765296727440,0.05308121,140.32,140.3,0.04752617]
[1765296729548,60.24,140.4,140.3,6.46202617]
[1765296729853,60.24,140.4,140.3,106.2021]
[1765296730052,60.24,140.4,140.3,6.4145]
[1765296730249,99.7319,140.38,140.26,62.0]
[1765296730443,99.747,140.36,140.21,99.8495]
[1765296730751,111.56324806,140.37,140.21,99.8495]
[1765296730752,0.05118671,140.3,140.27,0.05034894]
[1765296730949,0.05378852,140.3,140.27,0.0463381]
[1765296731950,99.7057,140.42,140.27,101.2745381]
[1765296732248,159.9504,140.41,140.27,99.8087]
[1765296732442,66.6501,140.41,140.28,99.8022]
[1765296732645,66.6501,140.41,140.29,99.7951]
[1765296732646,60.24,140.41,140.29,99.7951]
[1765296732844,60.24,140.41,140.28,99.8022]
[1765296733042,60.24,140.41,140.26,99.8161]
[1765296733043,0.0473656,140.36,140.33,0.05076698]
[1765296733952,101.2158656,140.36,140.22,160.3226]
[1765296734156,101.2158656,140.36,140.2,99.8571]
[1765296734157,99.7528,140.35,140.2,99.8571]
[1765296734451,99.7528,140.35,140.21,99.8494]
[1765296734853,99.7696,140.33,140.18,99.8723]
[1765296735158,0.04841125,140.27,140.24,0.04884616]
[1765296735353,0.04516934,140.27,140.24,0.05037399]
[1765296739358,0.04516934,140.27,140.25,6.4168]
[1765296739653,0.04516934,140.27,140.24,0.05037399]
[1765296740258,60.24,140.34,140.24,99.87797399]
[1765296740456,60.24,140.34,140.26,99.8165]
[1765296741249,60.24,140.34,140.28,6.4155]
[1765296741445,0.04744336,140.31,140.29,0.05279472]
[1765296742960,0.04744336,140.31,140.29,6.46799472]
[1765296743562,60.24,140.39,140.33,6.4133]
[1765296743764,60.24,140.39,140.32,99.7736]
[1765296743964,60.24,140.39,140.3,7.15967311]
[1765296744160,60.24,140.39,140.28,99.7995]
[1765296744553,0.04548685,140.35,140.32,0.04782063]
[1765296745055,3.1537147,140.43,140.33,99.7644]
[1765296745262,3.1537147,140.43,140.35,99.749]
[1765296745462,3.1537147,140.43,140.33,99.7644]
[1765296745669,3.1537147,140.43,140.35,6.4124]
[1765296746050,0.04750247,140.4,140.38,0.04630993]
[1765296747055,3.1537147,140.43,140.4,99.7156]
[1765296747253,99.5984,140.57,140.41,99.7063]
[1765296747254,99.604,140.56,140.41,99.7063]
[1765296747456,99.6184,140.54,140.39,106.88287311]
[1765296747654,99.6184,140.54,140.39,99.7241]
[1765296747857,6.4046,140.53,140.4,99.7132]
[1765296748061,0.04627662,140.48,140.45,0.04707714]
[1765296748264,0.04568187,140.48,140.45,0.05287811]
[1765296750262,99.57,140.61,140.47,99.6656]
[1765296750466,60.22,140.6,140.45,99.6779]
[1765296750663,60.22,140.6,140.46,99.6724]
[1765296751065,60.22,140.6,140.5,6.4057]
[1765296751373,159.7985,140.6,140.53,0.04643824]
[1765296751762,6.4025,140.58,140.53,0.04643824]
[1765296752161,6.4028,140.57,140.53,0.04643824]
[1765296752865,66.6028,140.57,140.53,0.04643824]
[1765296753370,60.2,140.57,140.53,0.04643824]